[Event "November 21 Late 2023"]
[Site "https://www.chess.com"]
[Date "2023.11.21"]
[Round "1"]
[White "Akhayan, Ruben"]
[Black "Gubajdullin, Alexei"]
[Result "0-1"]
[Board "82"]
[TimeControl "180+1"]
[WhiteFideId "204439"]
[BlackFideId "4141202"]
[WhiteElo "2141"]
[BlackElo "2280"]
[WhiteTeam "BEL"]
[BlackTeam "RUS"]
[WhiteClock "0:00:26"]
[BlackClock "0:00:51"]

1. e4 {[%clk 0:02:59]}  g6 {[%clk 0:02:58]} 2. d4 {[%clk 0:02:59]}  Bg7 {[%clk 0:02:57]} 3. Nc3 {[%clk 0:02:58]}  d6 {[%clk 0:02:57]} 4. Be3 {[%clk 0:02:57]}  a6 {[%clk 0:02:56]} 5. Qd2 {[%clk 0:02:57]}  b5 {[%clk 0:02:56]} 6. Nf3 {[%clk 0:02:55]}  Nd7 {[%clk 0:02:56]} 7. Bd3 {[%clk 0:02:56]}  c5 {[%clk 0:02:54]} 8. dxc5 {[%clk 0:02:55]}  Nxc5 {[%clk 0:02:54]} 9. O-O {[%clk 0:02:53]}  Bb7 {[%clk 0:02:44]} 10. a3 {[%clk 0:02:44]}  Rc8 {[%clk 0:02:39]} 11. h3 {[%clk 0:02:42]}  Nf6 {[%clk 0:02:37]} 12. Bxc5 {[%clk 0:02:31]}  Rxc5 {[%clk 0:02:34]} 13. Rfe1 {[%clk 0:02:27]}  O-O {[%clk 0:02:33]} 14. Rad1 {[%clk 0:02:26]}  Qa8 {[%clk 0:02:32]} 15. Qf4 {[%clk 0:02:16]}  Rfc8 {[%clk 0:02:31]} 16. Qh4 {[%clk 0:02:15]}  Bc6 {[%clk 0:02:10]} 17. Nd4 {[%clk 0:02:07]}  Be8 {[%clk 0:02:06]} 18. Nb3 {[%clk 0:02:06]}  R5c7 {[%clk 0:02:05]} 19. Qf4 {[%clk 0:01:39]}  Nh5 {[%clk 0:01:59]} 20. Qg4 {[%clk 0:01:37]}  e6 {[%clk 0:01:56]} 21. Qf3 {[%clk 0:01:12]}  Nf6 {[%clk 0:01:39]} 22. Qg3 {[%clk 0:01:12]}  Nd7 {[%clk 0:01:38]} 23. Qxd6 {[%clk 0:01:06]}  Be5 {[%clk 0:01:38]} 24. Qe7 {[%clk 0:01:05]}  Nf6 {[%clk 0:01:33]} 25. Qb4 {[%clk 0:01:02]}  Qa7 {[%clk 0:01:16]} 26. Qa5 {[%clk 0:00:59]}  Nh5 {[%clk 0:01:09]} 27. Bf1 {[%clk 0:00:51]}  Rxc3 {[%clk 0:00:53]} 28. bxc3 {[%clk 0:00:48]}  Bxc3 {[%clk 0:00:53]} 29. Rd8 {[%clk 0:00:28]}  Bxa5 {[%clk 0:00:52]} 30. Rxc8 {[%clk 0:00:26]}  Bxe1 {[%clk 0:00:51]} 0-1

[Event "November 21 Late 2023"]
[Site "https://www.chess.com"]
[Date "2023.11.21"]
[Round "1"]
[White "Wu, Derek"]
[Black "Haszon, David"]
[Result "1/2-1/2"]
[Board "83"]
[TimeControl "180+1"]
[WhiteFideId "30914558"]
[BlackFideId "733610"]
[WhiteElo "2211"]
[BlackElo "2182"]
[WhiteTeam "USA"]
[BlackTeam "HUN"]
[WhiteClock "0:00:24"]
[BlackClock "0:00:13"]

1. d4 {[%clk 0:03:00]}  d5 {[%clk 0:02:59]} 2. Nc3 {[%clk 0:02:56]}  Nf6 {[%clk 0:02:59]} 3. Bf4 {[%clk 0:02:56]}  g6 {[%clk 0:02:57]} 4. e3 {[%clk 0:02:54]}  Bg7 {[%clk 0:02:57]} 5. h4 {[%clk 0:02:52]}  h5 {[%clk 0:02:55]} 6. Nf3 {[%clk 0:02:52]}  Bg4 {[%clk 0:02:49]} 7. Qd2 {[%clk 0:02:52]}  Bxf3 {[%clk 0:02:46]} 8. gxf3 {[%clk 0:02:52]}  O-O {[%clk 0:02:41]} 9. e4 {[%clk 0:02:47]}  dxe4 {[%clk 0:02:27]} 10. fxe4 {[%clk 0:02:48]}  c5 {[%clk 0:02:21]} 11. d5 {[%clk 0:02:43]}  Nbd7 {[%clk 0:01:54]} 12. O-O-O {[%clk 0:02:38]}  Qa5 {[%clk 0:01:50]} 13. f3 {[%clk 0:02:33]}  Ne8 {[%clk 0:01:37]} 14. Kb1 {[%clk 0:02:13]}  a6 {[%clk 0:01:16]} 15. Bh6 {[%clk 0:01:58]}  b5 {[%clk 0:01:10]} 16. Bxg7 {[%clk 0:01:57]}  Nxg7 {[%clk 0:01:10]} 17. f4 {[%clk 0:01:50]}  b4 {[%clk 0:01:07]} 18. Ne2 {[%clk 0:01:48]}  Nf6 {[%clk 0:01:04]} 19. e5 {[%clk 0:01:41]}  Ng4 {[%clk 0:00:57]} 20. Nc1 {[%clk 0:01:41]}  Nf5 {[%clk 0:00:53]} 21. Bh3 {[%clk 0:01:35]}  Ngh6 {[%clk 0:00:50]} 22. Rhg1 {[%clk 0:01:27]}  c4 {[%clk 0:00:48]} 23. e6 {[%clk 0:01:21]}  Kh7 {[%clk 0:00:20]} 24. Qe2 {[%clk 0:01:02]}  c3 {[%clk 0:00:20]} 25. Nb3 {[%clk 0:01:01]}  Qb5 {[%clk 0:00:18]} 26. Qxb5 {[%clk 0:00:55]}  axb5 {[%clk 0:00:19]} 27. Rd3 {[%clk 0:00:49]}  cxb2 {[%clk 0:00:18]} 28. Kxb2 {[%clk 0:00:50]}  fxe6 {[%clk 0:00:15]} 29. dxe6 {[%clk 0:00:50]}  Ra6 {[%clk 0:00:15]} 30. Nc5 {[%clk 0:00:48]}  Rc6 {[%clk 0:00:15]} 31. Ne4 {[%clk 0:00:48]}  Rfc8 {[%clk 0:00:15]} 32. Ng5+ {[%clk 0:00:43]}  Kg7 {[%clk 0:00:15]} 33. Rg2 {[%clk 0:00:41]}  Nxh4 {[%clk 0:00:15]} 34. Rgd2 {[%clk 0:00:40]}  N4f5 {[%clk 0:00:15]} 35. Rd5 {[%clk 0:00:37]}  Rc5 {[%clk 0:00:12]} 36. Rxc5 {[%clk 0:00:35]}  Rxc5 {[%clk 0:00:13]} 37. Kb3 {[%clk 0:00:33]}  Rc4 {[%clk 0:00:12]} 38. Rd5 {[%clk 0:00:27]}  Rxf4 {[%clk 0:00:12]} 39. Rxb5 {[%clk 0:00:27]}  Kf6 {[%clk 0:00:12]} 40. Nh7+ {[%clk 0:00:23]}  Kg7 {[%clk 0:00:12]} 41. Ng5 {[%clk 0:00:23]}  Kf6 {[%clk 0:00:13]} 42. Nh7+ {[%clk 0:00:23]}  Kg7 {[%clk 0:00:13]} 43. Ng5 {[%clk 0:00:24]} 1/2-1/2

[Event "November 21 Late 2023"]
[Site "https://www.chess.com"]
[Date "2023.11.21"]
[Round "1"]
[White "hristos03"]
[Black "Krishnan, Varun"]
[Result "0-1"]
[Board "88"]
[TimeControl "180+1"]
[BlackFideId "5054508"]
[WhiteElo "2386"]
[BlackElo "2341"]
[BlackTeam "USA"]
[WhiteClock "0:00:00"]
[BlackClock "0:00:12"]

1. e4 {[%clk 0:02:58]}  e5 {[%clk 0:02:56]} 2. Nf3 {[%clk 0:02:58]}  Nc6 {[%clk 0:02:56]} 3. Bb5 {[%clk 0:02:57]}  a6 {[%clk 0:02:56]} 4. Ba4 {[%clk 0:02:58]}  Nf6 {[%clk 0:02:56]} 5. O-O {[%clk 0:02:57]}  Be7 {[%clk 0:02:56]} 6. Re1 {[%clk 0:02:57]}  b5 {[%clk 0:02:56]} 7. Bb3 {[%clk 0:02:58]}  O-O {[%clk 0:02:56]} 8. a4 {[%clk 0:02:58]}  b4 {[%clk 0:02:51]} 9. a5 {[%clk 0:02:57]}  d6 {[%clk 0:02:50]} 10. d3 {[%clk 0:02:57]}  Be6 {[%clk 0:02:48]} 11. Nbd2 {[%clk 0:02:56]}  Rb8 {[%clk 0:02:40]} 12. Bxe6 {[%clk 0:02:54]}  fxe6 {[%clk 0:02:39]} 13. Nc4 {[%clk 0:02:55]}  Rb5 {[%clk 0:02:36]} 14. h3 {[%clk 0:02:50]}  Nd4 {[%clk 0:02:32]} 15. b3 {[%clk 0:02:00]}  Qe8 {[%clk 0:02:00]} 16. Be3 {[%clk 0:01:51]}  Nxf3+ {[%clk 0:01:59]} 17. Qxf3 {[%clk 0:01:51]}  Qg6 {[%clk 0:01:58]} 18. Qg3 {[%clk 0:01:32]}  Qxg3 {[%clk 0:01:54]} 19. fxg3 {[%clk 0:01:33]}  Nh5 {[%clk 0:01:44]} 20. Kh2 {[%clk 0:01:32]}  Rbb8 {[%clk 0:01:43]} 21. Rf1 {[%clk 0:01:27]}  Rxf1 {[%clk 0:01:40]} 22. Rxf1 {[%clk 0:01:27]}  Rf8 {[%clk 0:01:41]} 23. Rxf8+ {[%clk 0:01:18]}  Kxf8 {[%clk 0:01:41]} 24. g4 {[%clk 0:01:19]}  Nf4 {[%clk 0:01:37]} 25. Bxf4 {[%clk 0:01:19]}  exf4 {[%clk 0:01:37]} 26. d4 {[%clk 0:01:13]}  Ke8 {[%clk 0:01:37]} 27. d5 {[%clk 0:01:10]}  Kd7 {[%clk 0:01:29]} 28. Kg1 {[%clk 0:01:07]}  Bd8 {[%clk 0:01:09]} 29. Kf2 {[%clk 0:01:00]}  c6 {[%clk 0:01:02]} 30. dxe6+ {[%clk 0:00:44]}  Kxe6 {[%clk 0:01:01]} 31. Kf3 {[%clk 0:00:45]}  g5 {[%clk 0:01:01]} 32. g3 {[%clk 0:00:25]}  fxg3 {[%clk 0:00:58]} 33. Kxg3 {[%clk 0:00:25]}  d5 {[%clk 0:00:48]} 34. exd5+ {[%clk 0:00:18]}  cxd5 {[%clk 0:00:48]} 35. Nb2 {[%clk 0:00:07]}  Bxa5 {[%clk 0:00:47]} 36. Nd3 {[%clk 0:00:07]}  Bc7+ {[%clk 0:00:46]} 37. Kf3 {[%clk 0:00:07]}  a5 {[%clk 0:00:45]} 38. Ke3 {[%clk 0:00:06]}  Bb6+ {[%clk 0:00:44]} 39. Kf3 {[%clk 0:00:06]}  Bd4 {[%clk 0:00:44]} 40. Nc1 {[%clk 0:00:04]}  Ke7 {[%clk 0:00:38]} 41. Ne2 {[%clk 0:00:04]}  Be5 {[%clk 0:00:38]} 42. Nc1 {[%clk 0:00:04]}  Kd6 {[%clk 0:00:38]} 43. Nd3 {[%clk 0:00:05]}  Bd4 {[%clk 0:00:35]} 44. Nc1 {[%clk 0:00:04]}  Kc6 {[%clk 0:00:33]} 45. Ne2 {[%clk 0:00:04]}  Be5 {[%clk 0:00:33]} 46. Ke3 {[%clk 0:00:04]}  Kb5 {[%clk 0:00:32]} 47. Ng1 {[%clk 0:00:02]}  a4 {[%clk 0:00:27]} 48. bxa4+ {[%clk 0:00:03]}  Kxa4 {[%clk 0:00:28]} 49. Kd3 {[%clk 0:00:04]}  Ka3 {[%clk 0:00:24]} 50. Nf3 {[%clk 0:00:04]}  Bf6 {[%clk 0:00:24]} 51. Ne1 {[%clk 0:00:03]}  Kb2 {[%clk 0:00:24]} 52. Ng2 {[%clk 0:00:04]}  d4 {[%clk 0:00:23]} 53. Ne1 {[%clk 0:00:03]}  Kc1 {[%clk 0:00:23]} 54. Nf3 {[%clk 0:00:04]}  Kd1 {[%clk 0:00:22]} 55. h4 {[%clk 0:00:03]}  gxh4 {[%clk 0:00:22]} 56. g5 {[%clk 0:00:04]}  Be7 {[%clk 0:00:16]} 57. Nxh4 {[%clk 0:00:03]}  Bxg5 {[%clk 0:00:16]} 58. Nf3 {[%clk 0:00:03]}  Be3 {[%clk 0:00:15]} 59. Nh2 {[%clk 0:00:02]}  h5 {[%clk 0:00:15]} 60. Nf3 {[%clk 0:00:02]}  Bf2 {[%clk 0:00:13]} 61. Nh2 {[%clk 0:00:02]}  h4 {[%clk 0:00:12]} 62. Nf3 {[%clk 0:00:02]}  h3 {[%clk 0:00:12]} 63. Nh2 {[%clk 0:00:02]}  Bg1 {[%clk 0:00:12]} 64. Nf3 {[%clk 0:00:00]}  h2 {[%clk 0:00:12]} 0-1

[Event "November 21 Late 2023"]
[Site "https://www.chess.com"]
[Date "2023.11.21"]
[Round "1"]
[White "Fiorito, Francisco"]
[Black "Figorito, Nick"]
[Result "1/2-1/2"]
[Board "89"]
[TimeControl "180+1"]
[WhiteFideId "180165"]
[BlackFideId "30923689"]
[WhiteElo "2318"]
[BlackElo "2380"]
[WhiteTeam "ARG"]
[BlackTeam "USA"]
[WhiteClock "0:00:07"]
[BlackClock "0:00:06"]

1. Nf3 {[%clk 0:03:00]}  Nf6 {[%clk 0:02:59]} 2. g3 {[%clk 0:03:01]}  g6 {[%clk 0:03:00]} 3. b3 {[%clk 0:03:01]}  Bg7 {[%clk 0:03:01]} 4. Bb2 {[%clk 0:03:02]}  O-O {[%clk 0:03:02]} 5. Bg2 {[%clk 0:03:02]}  c5 {[%clk 0:03:02]} 6. c4 {[%clk 0:02:56]}  Nc6 {[%clk 0:03:03]} 7. Nc3 {[%clk 0:02:53]}  d6 {[%clk 0:03:01]} 8. O-O {[%clk 0:02:52]}  Rb8 {[%clk 0:03:02]} 9. d4 {[%clk 0:02:51]}  cxd4 {[%clk 0:03:02]} 10. Nxd4 {[%clk 0:02:52]}  Nxd4 {[%clk 0:03:00]} 11. Qxd4 {[%clk 0:02:53]}  a6 {[%clk 0:02:47]} 12. Rad1 {[%clk 0:02:44]}  Be6 {[%clk 0:02:42]} 13. Qd3 {[%clk 0:02:21]}  Qc8 {[%clk 0:02:40]} 14. e4 {[%clk 0:02:14]}  Bh3 {[%clk 0:02:27]} 15. Nd5 {[%clk 0:01:59]}  Nxd5 {[%clk 0:02:23]} 16. Bxg7 {[%clk 0:01:59]}  Nf4 {[%clk 0:01:49]} 17. gxf4 {[%clk 0:01:55]}  Bxg2 {[%clk 0:01:49]} 18. Kxg2 {[%clk 0:01:36]}  Kxg7 {[%clk 0:01:40]} 19. h3 {[%clk 0:01:37]}  Qc6 {[%clk 0:01:37]} 20. Qd4+ {[%clk 0:01:33]}  Kg8 {[%clk 0:01:37]} 21. Qd5 {[%clk 0:01:21]}  Rfc8 {[%clk 0:01:34]} 22. e5 {[%clk 0:01:16]}  dxe5 {[%clk 0:01:32]} 23. fxe5 {[%clk 0:01:16]}  e6 {[%clk 0:01:15]} 24. Qxc6 {[%clk 0:01:15]}  Rxc6 {[%clk 0:01:16]} 25. Rd6 {[%clk 0:00:50]}  Rc5 {[%clk 0:01:08]} 26. Re1 {[%clk 0:00:34]}  b5 {[%clk 0:01:08]} 27. cxb5 {[%clk 0:00:33]}  axb5 {[%clk 0:01:08]} 28. Re2 {[%clk 0:00:30]}  Rc7 {[%clk 0:00:59]} 29. Rd3 {[%clk 0:00:28]}  b4 {[%clk 0:00:56]} 30. Kf3 {[%clk 0:00:27]}  Ra7 {[%clk 0:00:53]} 31. h4 {[%clk 0:00:26]}  Rba8 {[%clk 0:00:53]} 32. Rdd2 {[%clk 0:00:25]}  Kg7 {[%clk 0:00:50]} 33. Ke4 {[%clk 0:00:23]}  Ra5 {[%clk 0:00:43]} 34. f4 {[%clk 0:00:23]}  R8a7 {[%clk 0:00:41]} 35. Kd4 {[%clk 0:00:16]}  Rc7 {[%clk 0:00:36]} 36. Rc2 {[%clk 0:00:14]}  Rd5+ {[%clk 0:00:33]} 37. Ke4 {[%clk 0:00:14]}  Ra7 {[%clk 0:00:19]} 38. Rc4 {[%clk 0:00:13]}  Rda5 {[%clk 0:00:19]} 39. Rcc2 {[%clk 0:00:13]}  Rd5 {[%clk 0:00:19]} 40. h5 {[%clk 0:00:10]}  Kh6 {[%clk 0:00:14]} 41. hxg6 {[%clk 0:00:09]}  hxg6 {[%clk 0:00:15]} 42. Rh2+ {[%clk 0:00:09]}  Kg7 {[%clk 0:00:16]} 43. Rh3 {[%clk 0:00:10]}  Rda5 {[%clk 0:00:13]} 44. Rhh2 {[%clk 0:00:10]}  Rd5 {[%clk 0:00:13]} 45. Rhd2 {[%clk 0:00:10]}  Rda5 {[%clk 0:00:12]} 46. Kd4 {[%clk 0:00:10]}  Rb7 {[%clk 0:00:06]} 47. Kc4 {[%clk 0:00:10]}  Rab5 {[%clk 0:00:06]} 48. Rd6 {[%clk 0:00:09]}  Ra5 {[%clk 0:00:05]} 49. Rdd2 {[%clk 0:00:08]}  Rab5 {[%clk 0:00:05]} 50. Kd4 {[%clk 0:00:08]}  Ra5 {[%clk 0:00:06]} 51. Ke4 {[%clk 0:00:09]}  Rab5 {[%clk 0:00:06]} 52. Rd6 {[%clk 0:00:09]}  Ra5 {[%clk 0:00:07]} 53. Kd4 {[%clk 0:00:09]}  Rba7 {[%clk 0:00:07]} 54. Kc4 {[%clk 0:00:09]}  Rb7 {[%clk 0:00:06]} 55. Rdd2 {[%clk 0:00:07]} 1/2-1/2

[Event "November 21 Late 2023"]
[Site "https://www.chess.com"]
[Date "2023.11.21"]
[Round "1"]
[White "Semenenko, Dmytry"]
[Black "Jakubowski, Krzysztof"]
[Result "0-1"]
[Board "90"]
[TimeControl "180+1"]
[WhiteFideId "14118645"]
[BlackFideId "1112848"]
[WhiteElo "2113"]
[BlackElo "2369"]
[WhiteTeam "UKR"]
[BlackTeam "POL"]
[WhiteClock "0:01:26"]
[BlackClock "0:00:54"]

1. Nf3 {[%clk 0:02:56]}  Nf6 {[%clk 0:02:58]} 2. c4 {[%clk 0:02:56]}  e6 {[%clk 0:02:56]} 3. d4 {[%clk 0:02:56]}  b6 {[%clk 0:02:55]} 4. Nc3 {[%clk 0:02:57]}  Bb4 {[%clk 0:02:54]} 5. g3 {[%clk 0:02:57]}  Bb7 {[%clk 0:02:44]} 6. Bg2 {[%clk 0:02:56]}  Ne4 {[%clk 0:02:32]} 7. Qc2 {[%clk 0:02:55]}  Nxc3 {[%clk 0:02:31]} 8. bxc3 {[%clk 0:02:55]}  Be7 {[%clk 0:02:31]} 9. e4 {[%clk 0:02:55]}  d6 {[%clk 0:02:30]} 10. O-O {[%clk 0:02:54]}  Nd7 {[%clk 0:02:29]} 11. Be3 {[%clk 0:02:51]}  c5 {[%clk 0:02:28]} 12. a4 {[%clk 0:02:50]}  a5 {[%clk 0:02:24]} 13. Rfd1 {[%clk 0:02:45]}  Qc7 {[%clk 0:02:23]} 14. e5 {[%clk 0:02:39]}  dxe5 {[%clk 0:02:19]} 15. dxe5 {[%clk 0:02:38]}  Rd8 {[%clk 0:02:05]} 16. Bf4 {[%clk 0:02:27]}  h6 {[%clk 0:02:00]} 17. h4 {[%clk 0:02:26]}  g5 {[%clk 0:01:45]} 18. hxg5 {[%clk 0:02:24]}  Bxf3 {[%clk 0:01:40]} 19. Bxf3 {[%clk 0:02:21]}  hxg5 {[%clk 0:01:40]} 20. Be3 {[%clk 0:02:15]}  Nxe5 {[%clk 0:01:39]} 21. Rxd8+ {[%clk 0:02:14]}  Bxd8 {[%clk 0:01:33]} 22. Bg2 {[%clk 0:02:13]}  Nxc4 {[%clk 0:01:31]} 23. Qe4 {[%clk 0:01:57]}  Nxe3 {[%clk 0:01:27]} 24. Qxe3 {[%clk 0:01:57]}  Bf6 {[%clk 0:01:23]} 25. Rd1 {[%clk 0:01:55]}  O-O {[%clk 0:01:15]} 26. Be4 {[%clk 0:01:52]}  Rd8 {[%clk 0:01:12]} 27. Qf3 {[%clk 0:01:50]}  Kg7 {[%clk 0:01:09]} 28. Rxd8 {[%clk 0:01:44]}  Qxd8 {[%clk 0:01:09]} 29. Qh5 {[%clk 0:01:44]}  Bxc3 {[%clk 0:01:06]} 30. Qh7+ {[%clk 0:01:44]}  Kf8 {[%clk 0:01:06]} 31. Qh6+ {[%clk 0:01:44]}  Bg7 {[%clk 0:01:04]} 32. Qh7 {[%clk 0:01:44]}  c4 {[%clk 0:01:00]} 33. Kg2 {[%clk 0:01:40]}  Qd2 {[%clk 0:00:58]} 34. Bc2 {[%clk 0:01:32]}  Bd4 {[%clk 0:00:55]} 35. Qh6+ {[%clk 0:01:26]}  Ke7 {[%clk 0:00:54]} 0-1

[Event "November 21 Late 2023"]
[Site "https://www.chess.com"]
[Date "2023.11.21"]
[Round "1"]
[White "Ward, Ieuan C"]
[Black "Bjelobrk, Igor"]
[Result "0-1"]
[Board "92"]
[TimeControl "180+1"]
[WhiteFideId "406627"]
[BlackFideId "4300726"]
[WhiteElo "2374"]
[BlackElo "2319"]
[WhiteTeam "ENG"]
[BlackTeam "AUS"]
[WhiteClock "0:00:00"]
[BlackClock "0:00:07"]

1. d4 {[%clk 0:03:00]}  e6 {[%clk 0:02:59]} 2. c4 {[%clk 0:03:00]}  b6 {[%clk 0:02:57]} 3. Nf3 {[%clk 0:03:00]}  Bb7 {[%clk 0:02:56]} 4. g3 {[%clk 0:03:00]}  Bb4+ {[%clk 0:02:54]} 5. Bd2 {[%clk 0:02:59]}  Bxf3 {[%clk 0:02:53]} 6. exf3 {[%clk 0:02:59]}  Bxd2+ {[%clk 0:02:53]} 7. Qxd2 {[%clk 0:02:58]}  Ne7 {[%clk 0:02:53]} 8. Bg2 {[%clk 0:02:58]}  d5 {[%clk 0:02:52]} 9. O-O {[%clk 0:02:56]}  O-O {[%clk 0:02:49]} 10. f4 {[%clk 0:02:55]}  c6 {[%clk 0:02:37]} 11. b3 {[%clk 0:02:46]}  Nd7 {[%clk 0:02:29]} 12. Nc3 {[%clk 0:02:43]}  Nf6 {[%clk 0:02:22]} 13. Rfd1 {[%clk 0:02:36]}  a6 {[%clk 0:02:17]} 14. Rac1 {[%clk 0:02:26]}  Qd7 {[%clk 0:02:15]} 15. Qe3 {[%clk 0:02:16]}  Rab8 {[%clk 0:02:13]} 16. h3 {[%clk 0:02:14]}  Rfd8 {[%clk 0:01:56]} 17. g4 {[%clk 0:02:12]}  Ng6 {[%clk 0:01:53]} 18. Ne2 {[%clk 0:02:10]}  dxc4 {[%clk 0:01:44]} 19. bxc4 {[%clk 0:02:08]}  b5 {[%clk 0:01:44]} 20. cxb5 {[%clk 0:01:56]}  cxb5 {[%clk 0:01:44]} 21. Rc5 {[%clk 0:01:24]}  Rbc8 {[%clk 0:01:37]} 22. Rdc1 {[%clk 0:01:18]}  Ne7 {[%clk 0:01:34]} 23. Qc3 {[%clk 0:01:00]}  Ned5 {[%clk 0:01:23]} 24. Qa5 {[%clk 0:00:43]}  Rxc5 {[%clk 0:00:51]} 25. dxc5 {[%clk 0:00:44]}  Qc7 {[%clk 0:00:51]} 26. Qxa6 {[%clk 0:00:17]}  Nxf4 {[%clk 0:00:49]} 27. Nxf4 {[%clk 0:00:17]}  Qxf4 {[%clk 0:00:50]} 28. Rf1 {[%clk 0:00:15]}  h5 {[%clk 0:00:48]} 29. gxh5 {[%clk 0:00:12]}  b4 {[%clk 0:00:42]} 30. Qe2 {[%clk 0:00:10]}  Rd2 {[%clk 0:00:40]} 31. Qf3 {[%clk 0:00:08]}  Qe5 {[%clk 0:00:31]} 32. c6 {[%clk 0:00:07]}  Rxa2 {[%clk 0:00:30]} 33. Rc1 {[%clk 0:00:06]}  Nd5 {[%clk 0:00:21]} 34. Qg3 {[%clk 0:00:04]}  Qb2 {[%clk 0:00:16]} 35. Rd1 {[%clk 0:00:02]}  Qe2 {[%clk 0:00:11]} 36. Rf1 {[%clk 0:00:02]}  Qxh5 {[%clk 0:00:08]} 37. c7 {[%clk 0:00:02]}  Rc2 {[%clk 0:00:07]} 38. Bxd5 {[%clk 0:00:02]}  Qxd5 {[%clk 0:00:07]} 39. Qd6 {[%clk 0:00:00]}  Qxd6 {[%clk 0:00:07]} 0-1

[Event "November 21 Late 2023"]
[Site "https://www.chess.com"]
[Date "2023.11.21"]
[Round "1"]
[White "Koellner, Ruben Gideon"]
[Black "TheAlienParty"]
[Result "0-1"]
[Board "93"]
[TimeControl "180+1"]
[WhiteFideId "12993093"]
[WhiteElo "2347"]
[BlackElo "2372"]
[WhiteTeam "GER"]
[WhiteClock "0:00:15"]
[BlackClock "0:01:28"]

1. d4 {[%clk 0:02:59]}  Nf6 {[%clk 0:02:52]} 2. Nf3 {[%clk 0:02:58]}  e6 {[%clk 0:02:51]} 3. Nbd2 {[%clk 0:02:58]}  d5 {[%clk 0:02:49]} 4. e3 {[%clk 0:02:57]}  c5 {[%clk 0:02:49]} 5. c3 {[%clk 0:02:57]}  Nc6 {[%clk 0:02:48]} 6. Bd3 {[%clk 0:02:56]}  b6 {[%clk 0:02:48]} 7. Ne5 {[%clk 0:02:55]}  Bb7 {[%clk 0:02:47]} 8. f4 {[%clk 0:02:55]}  Bd6 {[%clk 0:02:42]} 9. Qf3 {[%clk 0:02:54]}  Ne7 {[%clk 0:02:41]} 10. O-O {[%clk 0:02:52]}  h5 {[%clk 0:02:40]} 11. g3 {[%clk 0:02:51]}  Nf5 {[%clk 0:02:32]} 12. h3 {[%clk 0:02:50]}  Bc7 {[%clk 0:02:29]} 13. g4 {[%clk 0:02:31]}  hxg4 {[%clk 0:02:28]} 14. hxg4 {[%clk 0:02:32]}  Nd6 {[%clk 0:02:24]} 15. g5 {[%clk 0:02:31]}  Nfe4 {[%clk 0:02:23]} 16. Kg2 {[%clk 0:02:31]}  Nf5 {[%clk 0:02:13]} 17. Rh1 {[%clk 0:01:42]}  Nh4+ {[%clk 0:02:12]} 18. Rxh4 {[%clk 0:01:42]}  Rxh4 {[%clk 0:02:11]} 19. Nxe4 {[%clk 0:01:34]}  Bxe5 {[%clk 0:02:04]} 20. dxe5 {[%clk 0:01:20]}  dxe4 {[%clk 0:02:03]} 21. Bxe4 {[%clk 0:01:13]}  Bxe4 {[%clk 0:02:01]} 22. Qxe4 {[%clk 0:01:14]}  Rc8 {[%clk 0:01:59]} 23. Qc2 {[%clk 0:01:04]}  Ke7 {[%clk 0:01:47]} 24. Bd2 {[%clk 0:00:35]}  Qh8 {[%clk 0:01:45]} 25. Rg1 {[%clk 0:00:24]}  Rh2+ {[%clk 0:01:44]} 26. Kf1 {[%clk 0:00:25]}  Qh3+ {[%clk 0:01:41]} 27. Ke1 {[%clk 0:00:25]}  Qf3 {[%clk 0:01:39]} 28. Qd3 {[%clk 0:00:13]}  Qf2+ {[%clk 0:01:34]} 29. Kd1 {[%clk 0:00:13]}  Qxg1+ {[%clk 0:01:33]} 30. Kc2 {[%clk 0:00:14]}  Rd8 {[%clk 0:01:32]} 31. Qa6 {[%clk 0:00:13]}  Rdxd2+ {[%clk 0:01:29]} 32. Kb3 {[%clk 0:00:14]}  Rxb2+ {[%clk 0:01:28]} 33. Kc4 {[%clk 0:00:15]}  Qf1# {[%clk 0:01:28]} 0-1

[Event "November 21 Late 2023"]
[Site "https://www.chess.com"]
[Date "2023.11.21"]
[Round "1"]
[White "Krysa, Leandro"]
[Black "i_like_explosions"]
[Result "1-0"]
[Board "95"]
[TimeControl "180+1"]
[WhiteFideId "116807"]
[WhiteElo "2495"]
[BlackElo "2372"]
[WhiteTeam "ARG"]
[WhiteClock "0:01:54"]
[BlackClock "0:00:50"]

1. e4 {[%clk 0:03:00]}  c5 {[%clk 0:02:58]} 2. Nf3 {[%clk 0:03:00]}  Nc6 {[%clk 0:02:58]} 3. Bb5 {[%clk 0:03:00]}  e6 {[%clk 0:02:59]} 4. O-O {[%clk 0:02:57]}  Nge7 {[%clk 0:02:58]} 5. Re1 {[%clk 0:02:58]}  a6 {[%clk 0:02:59]} 6. Bf1 {[%clk 0:02:58]}  d5 {[%clk 0:02:59]} 7. d3 {[%clk 0:02:53]}  dxe4 {[%clk 0:02:39]} 8. dxe4 {[%clk 0:02:52]}  Qxd1 {[%clk 0:02:40]} 9. Rxd1 {[%clk 0:02:52]}  Ng6 {[%clk 0:02:40]} 10. a4 {[%clk 0:02:51]}  b6 {[%clk 0:02:35]} 11. Na3 {[%clk 0:02:50]}  Nge5 {[%clk 0:02:03]} 12. Nxe5 {[%clk 0:02:47]}  Nxe5 {[%clk 0:02:02]} 13. Bf4 {[%clk 0:02:48]}  Nd7 {[%clk 0:01:51]} 14. Nc4 {[%clk 0:02:43]}  Be7 {[%clk 0:01:50]} 15. Bc7 {[%clk 0:02:38]}  Ra7 {[%clk 0:01:39]} 16. Bxb6 {[%clk 0:02:36]}  Nxb6 {[%clk 0:01:27]} 17. Nxb6 {[%clk 0:02:37]}  Bb7 {[%clk 0:01:25]} 18. e5 {[%clk 0:02:20]}  Bc6 {[%clk 0:01:23]} 19. a5 {[%clk 0:02:17]}  O-O {[%clk 0:01:16]} 20. Rd2 {[%clk 0:02:11]}  Bb5 {[%clk 0:01:08]} 21. Rad1 {[%clk 0:02:07]}  Rb8 {[%clk 0:01:00]} 22. g3 {[%clk 0:01:56]}  Kf8 {[%clk 0:00:55]} 23. Bxb5 {[%clk 0:01:54]}  axb5 {[%clk 0:00:50]} 24. Nd7+ {[%clk 0:01:54]} 1-0